Cogmind - Beta 16.1 @@@ ROGUE MODE // 2026.02.12 @ 20:18:48 Player: Selene Result: Destroyed by Z2-6EW(R) with Subdweller Machine Gun Performance ------------- Evolutions (0) 0 Regions Visited (3) 600 Robots Destroyed (17) 85 Value Destroyed (412) 412 Prototype IDs (1) 20 Alien Tech Used (0) 0 Bonus (-10) -10 TOTAL SCORE: 1107 Bonus ------- Friendly Fire -10 Cogmind --------- Core Integrity 0/250 Matter 163/300 Energy 100/100 System Corruption 1% Temperature Cool (0) Movement Treading (480) Ox4 Location -10/Subcaves Parts ------- > --- POWER (1) -------- (None) > --- PROPULSION (2) --- Light Treads Subdweller Monowheel > --- UTILITY (2) ------ Huge Storage Unit Makeshift Light Armor Plating > --- WEAPON (2) ------- Improved Assault Rifle > --- INVENTORY (25) --- Subdweller Power Source Light Nuclear Core Compact Wheel Subdweller Monowheel Flight Unit Improved Heat Sink Cooling System Medium Storage Unit Large Storage Unit Machine Analyzer Subdweller Optics Signal Interpreter Seismic Detector Light Armor Plating Light Armor Plating Makeshift Light Armor Plating Subdweller Beam Cannon Assault Rifle Assault Rifle Subdweller Machine Gun Improved Assault Rifle Improved Assault Rifle Barrage Gun Rocket Launcher Peak State ------------ > --- POWER ------------ Ion Engine > --- PROPULSION ------- Light Treads Subdweller Monowheel > --- UTILITY ---------- Huge Storage Unit Makeshift Light Armor Plating > --- WEAPON ----------- Improved Assault Rifle Improved Assault Rifle > --- INVENTORY -------- Subdweller Power Source Light Nuclear Core Light Treads Compact Wheel Subdweller Monowheel Flight Unit Improved Heat Sink Cooling System Medium Storage Unit Large Storage Unit Machine Analyzer Subdweller Optics Signal Interpreter Seismic Detector Light Armor Plating Light Armor Plating Makeshift Light Armor Plating Subdweller Beam Cannon Assault Rifle Assault Rifle Subdweller Machine Gun Improved Assault Rifle Improved Assault Rifle Barrage Gun Rocket Launcher [Rating: 19] Favorites ----------- Power Ion Engine Engine Ion Engine Propulsion Light Treads Treads Light Treads Wheel Compact Wheel Utility Large Storage Unit Device Seismic Detector Storage Large Storage Unit Protection Light Armor Plating Weapon Improved Assault Rifle Energy Gun Medium Laser Ballistic Gun Improved Assault Rifle Special Weapon Mining Laser Build | -11 -10 -10 -10 ------- Run | Yrd Mat Min Sub Slots Evolved . | . . . . Power . | . . . . Propulsion . | . . . . Utility . | . . . . Weapon . | . . . . Parts Attached 24 | 7 10 1 6 Power 2 | 1 1 . . Engine 2 | 1 1 . . Core . | . . . . Reactor . | . . . . Propulsion 5 | 2 2 . 1 Treads 2 | 1 1 . . Leg . | . . . . Wheel 3 | 1 1 . 1 Hover . | . . . . Flight . | . . . . Utility 9 | 2 4 . 3 Device 2 | 1 . . 1 Storage 3 | 1 1 . 1 Processor . | . . . . Hackware . | . . . . Protection 4 | . 3 . 1 Artifact . | . . . . Weapon 8 | 2 3 1 2 Energy Gun 2 | 1 1 . . Energy Cannon . | . . . . Ballistic Gun 5 | 1 1 1 2 Ballistic Cannon . | . . . . Launcher . | . . . . Special Weapon 1 | . 1 . . Impact Weapon . | . . . . Slashing Weapon . | . . . . Piercing Weapon . | . . . . Special Melee Weapon . | . . . . Unidentified Prototypes 1 | . 1 . . Parts Lost 3 | . . . 3 Power 1 | . . . 1 Propulsion 1 | . . . 1 Utility . | . . . . Weapon 1 | . . . 1 Highest Loss Streak 3 | . . . 3 To Critical Strikes . | . . . . Average Backups 15 | 4 13 15 21 Power . | . . . 1 Propulsion 3 | 2 2 3 4 Utility 6 | . 5 7 9 Weapon 4 | 1 4 5 6 Tool/Special . | . . . . Unused Backups 23 | . 7 . 16 Power 2 | . . . 2 Propulsion 4 | . 2 . 2 Utility 7 | . 1 . 6 Weapon 10 | . 4 . 6 Tool/Special . | . . . . Average Slot Usage (%) 99 | . 99 100 99 Engine 13 | . 14 14 13 Treads 16 | . 18 14 14 Wheel 11 | . 8 13 13 Device 8 | . 6 13 10 Storage 14 | . 14 14 14 Protection 5 | . 7 . 3 Energy Gun 3 | . 6 . . Ballistic Gun 24 | . 20 28 28 Peak Build Rating 19 | 7 11 11 19 Average Rating 10 | 3 9 11 13 On Entrance 7 | . 7 11 11 Avg Prop Armor Cover (%) 12 | 14 12 12 11 Naked Turns . | . . . . Heaviest Build 95 | 12 32 32 95 Greatest Support 40 | 16 40 40 20 Greatest Overweight (x) 5 | . 3 1 5 Average Overweight (x) 1 | . 1 . 4 Largest Inventory Capacity 25 | 8 15 15 25 Average Capacity 17 | 5 14 15 23 Most Carried 25 | 6 15 15 25 Average Carried 15 | 4 13 15 21 Final Capacity 25 | 8 15 15 25 Final Carried 24 | 6 15 15 24 Class Distribution -------------------- 100% | Mutant Dominant Class ---------------- Mutant | -10/Materials Mutant | -10/Mines Mutant | -10/Subcaves Resources | -11 -10 -10 -10 ----------- Run | Yrd Mat Min Sub Matter Collected 768 | 266 212 54 236 Remotely . | . . . . Salvage Created 475 | 21 350 . 104 Parts 36 | 4 24 . 8 Haulers Intercepted . | . . . . Recyclers Shooed 1 | . 1 . . Parts Field Recycled . | . . . . Retrieved Matter . | . . . . Parts Self-Destructed 11 | . . . 11 Prevented . | . . . . Parts Restored . | . . . . Kills | -11 -10 -10 -10 ------- Run | Yrd Mat Min Sub Combat Hostiles Destroyed 14 | . 11 . 3 Guns 14 | . 11 . 3 Classes Destroyed 5 | 1 3 . 1 Tunneler 1 | 1 . . . Watcher 2 | . 2 . . Swarmer 6 | . 6 . . Grunt 5 | . 5 . . Subdweller 3 | . . . 3 Best Kill Streak 3 | 1 3 . 1 Combat Bots Only 3 | . 3 . 1 Max Kills in Single Turn 1 | 1 1 . 1 Gunslinging . | . . . . Exploded . | . . . . Melee . | . . . . Uniques/NPCs Destroyed . | . . . . Combat | -11 -10 -10 -10 -------- Run | Yrd Mat Min Sub Hostile Shots Fired 96 | . 44 . 52 Missed 19 | . 8 . 11 Hits 77 | . 36 . 41 Projectile 77 | . 36 . 41 Critical Strikes 4 | . . . 4 Damage Taken 1344 | . 336 . 1008 Core 265 | . 51 . 214 Absorbed by Shields . | . . . . Regen/Repaired (Parts) 93 | . 93 . . Core Remaining (%) 100 | 100 . . . Volleys Fired 61 | 1 33 . 27 Largest 2 | 2 2 . 2 Hottest 100 | 70 100 . 46 Shots Fired 117 | 2 65 . 50 Gun 115 | 2 63 . 50 Cannon . | . . . . Launcher . | . . . . Special 2 | . 2 . . Kinetic 97 | 1 46 . 50 Thermal 20 | 1 19 . . Explosive . | . . . . Electromagnetic . | . . . . Robot Hit Streak 11 | 1 11 . 9 Robot Miss Streak 3 | . 3 . 2 Penetration Max . | . . . . Secondary Targets 1 | . 1 . . Max Gunslinging Chain 1 | . 1 . . Shots Hit Robots 87 | 1 45 . 41 Core Hits 32 | 1 23 . 8 Critical Kills . | . . . . Critical Parts Destroyed 1 | . 1 . . Critical Strikes 2 | . 2 . . Burn 1 | . 1 . . Destroy 1 | . 1 . . Melee Attacks . | . . . . Impact . | . . . . Slashing . | . . . . Piercing . | . . . . Sneak Attacks . | . . . . Combat Hostiles . | . . . . Follow-up Attacks . | . . . . Damage Inflicted 977 | 13 508 . 456 Guns 952 | 13 483 . 456 Cannons . | . . . . Explosions . | . . . . Melee . | . . . . Ramming 25 | . 25 . . Kinetic 775 | . 319 . 456 Thermal 177 | 13 164 . . Explosive . | . . . . Electromagnetic . | . . . . Impact . | . . . . Slashing . | . . . . Piercing . | . . . . Highest Corruption 1 | . 1 1 1 Average Corruption 1 | . 1 1 1 Corruption Purged . | . . . . Corruption Blocked . | . . . . Effects 9 | . 3 3 3 Message Errors 2 | . . 2 . Matter Fused 1 | . . 1 . Heat Flow Errors 1 | . 1 . . Energy Discharges 2 | . 1 . 1 Data Loss (major) 1 | . . . 1 Misfires 2 | . 1 . 1 Overload Shots . | . . . . Overflow Damage . | . . . . Projectiles . | . . . . Explosions . | . . . . Melee . | . . . . Knockbacks 1 | . 1 . . Impact 1 | . 1 . . Kinetic . | . . . . Secondary . | . . . . Self-Inflicted Damage 7 | . 7 . . Shots . | . . . . Rammed 5 | . 5 . . Targets Rammed 5 | . 5 . . Kicked . | . . . . Crushed . | . . . . Highest Temperature 452 | 20 148 . 452 Average Temperature 79 | 15 56 . 239 Received Heat Transfer 853 | . 54 . 799 Effects 1 | . . . 1 Interference 1 | . . . 1 Siege Activations . | . . . . Martial Activations . | . . . . Shielding Activations . | . . . . Robots Disrupted . | . . . . Combat Hostiles . | . . . . Robots Corrupted . | . . . . Combat Hostiles . | . . . . Parts Fried . | . . . . Impact Corruptions . | . . . . Robots Melted . | . . . . Combat Hostiles . | . . . . Parts Melted . | . . . . Heat Transferred 592 | 37 555 . . Parts Sabotaged . | . . . . Parts Stolen . | . . . . Parts Stripped . | . . . . Power Chain Reactions . | . . . . Alert | -11 -10 -10 -10 ------- Run | Yrd Mat Min Sub Maximum Alert Level . | . . . . Low Security (%) 100 | 100 100 100 . Level 1 . | . . . . Level 2 . | . . . . Level 3 . | . . . . Level 4 . | . . . . Level 5 . | . . . . High Security . | . . . . Max Security . | . . . . Peak Influence 143 | 5 143 40 . Initial 40 | . . 40 . Average 39 | . 55 3 . Influence Increases 425 | 5 420 . . Destroy 0b10 Robot/C 220 | . 220 . . Destroy 0b10 Robot/NC 15 | 5 10 . . Destroy Leader 44 | . 44 . . Successful Hack 39 | . 39 . . Select Force Hacks 60 | . 60 . . Disable Machine 15 | . 15 . . Destroy Structure 2 | . 2 . . Lose Combat Pursuer 30 | . 30 . . Influence Decreases 425 | 5 314 106 . Entered New Map 66 | . . 66 . Time Decay 359 | 5 314 40 . Squads Dispatched 3 | . 3 . . Investigation 2 | . 2 . . Extermination . | . . . . Reinforcement 1 | . 1 . . Assault . | . . . . Garrison . | . . . . Intercept . | . . . . Searches Triggered . | . . . . Construction Impeded . | . . . . Haulers Reinforced . | . . . . Active Scanning Responses . | . . . . Cargo Convoy Interrupts . | . . . . Stealth | -11 -10 -10 -10 --------- Run | Yrd Mat Min Sub Distress Signals 1 | . 1 . . Communications Jammed . | . . . . Distress Signals . | . . . . Times Spotted 29 | . 24 . 5 Peak Tracking Total 4 | . 4 . 2 Tactical Retreats 1 | . 1 . . Traps | -11 -10 -10 -10 ------- Run | Yrd Mat Min Sub Traps Triggered 1 | . 1 . . Indirectly . | . . . . Trap Hack Attempts . | . . . . Triggered . | . . . . Disarmed . | . . . . Reprogrammed . | . . . . Reused . | . . . . Traps Extracted . | . . . . Installed . | . . . . Triggered . | . . . . Machines | -11 -10 -10 -10 ---------- Run | Yrd Mat Min Sub Machines Disabled 1 | . 1 . . Max in Single Turn 1 | . 1 . . Machines Repaired . | . . . . Machines Dismantled . | . . . . Machines Sabotaged . | . . . . Overloaded Fab Kills . | . . . . Hacking | -11 -10 -10 -10 --------- Run | Yrd Mat Min Sub Machines Accessed 10 | . 10 . . Terminals 7 | . 7 . . Fabricators . | . . . . Repair Stations 1 | . 1 . . Recycling Units 2 | . 2 . . Scanalyzers . | . . . . Garrison Access . | . . . . Total Hacks 32 | . 32 . . Successful 19 | . 19 . . Failed 13 | . 13 . . Catastrophic . | . . . . Database Lockouts . | . . . . Manual 24 | . 24 . . Terminals 25 | . 25 . . Fabricators . | . . . . Repair Stations 4 | . 4 . . Recycling Units 3 | . 3 . . Scanalyzers . | . . . . Garrison Access . | . . . . Terminal Hacks 6 | . 6 . . Part Schematic 1 | . 1 . . Robot Analysis 1 | . 1 . . Terminal Index 1 | . 1 . . Hauler Manifests 2 | . 2 . . Registered Components 1 | . 1 . . Fabricator Hacks . | . . . . Repair Station Hacks 4 | . 4 . . Scan Component 2 | . 2 . . Repair 2 | . 2 . . Recycling Unit Hacks . | . . . . Scanalyzer . | . . . . Garrison Access Hacks . | . . . . Unauthorized Hacks 9 | . 9 . . Terminals 7 | . 7 . . Botnet 2 | . 2 . . Skim 5 | . 5 . . Fabricators . | . . . . Repair Stations . | . . . . Recycling Units 2 | . 2 . . Tunnel 2 | . 2 . . Scanalyzers . | . . . . Garrison Access . | . . . . Data Cores Recovered . | . . . . Used . | . . . . Hacking Detections 8 | . 8 . . Full Trace Events . | . . . . Feedback Events . | . . . . Feedback Blocked . | . . . . Robot Schematics Acquired . | . . . . Robots Built . | . . . . Authchips . | . . . . Time . | . . . . Total Robot Build Rating . | . . . . Part Schematics Acquired 1 | . 1 . . Parts Built . | . . . . Authchips . | . . . . Time . | . . . . Total Part Build Rating . | . . . . Part Studies Acquired . | . . . . Parts Repaired 2 | . 2 . . Time 52 | . 52 . . Parts Recycled . | . . . . Recycled Matter . | . . . . Retrieved Matter . | . . . . Retrieved Components . | . . . . Parts Scanalyzed . | . . . . Part Schematics Acquired . | . . . . Parts Damaged . | . . . . Bothacking | -11 -10 -10 -10 ------------ Run | Yrd Mat Min Sub Used RIF Installer . | . . . . Robots Hacked . | . . . . Non-combat . | . . . . Combat . | . . . . Robot Hacks Applied . | . . . . Relay Couplers Released . | . . . . Fabnet Peak Effective % . | . . . . Robots Rewired . | . . . . Allies Hacked . | . . . . Hacks Repelled . | . . . . Allies | -11 -10 -10 -10 -------- Run | Yrd Mat Min Sub Total Allies 3 | . . 3 . Largest Group 3 | . . 3 3 Highest-Rated Group 40 | . . 40 40 Highest-Rated Ally 16 | . . 16 16 Total Orders . | . . . . Ally Attacks 22 | . . . 22 Total Damage 20 | . . . 20 Kills . | . . . . Allies Corrupted . | . . . . Allies Melted . | . . . . Intel | -11 -10 -10 -10 ------- Run | Yrd Mat Min Sub Active Infowar (turns) 1692 | 15 565 508 604 Seismic 1692 | 15 565 508 604 Robot Analysis Total 1 | . 1 . . Derelict Logs Recovered 2 | . . 1 1 Drone Launches . | . . . . Drone Recoveries . | . . . . Exploration | -11 -10 -10 -10 ------------- Run | Yrd Mat Min Sub Turns Passed 2757 | 66 1299 524 868 Spaces Moved 1720 | 58 804 407 451 Core 25 | 25 . . . Treads 210 | . 197 13 . Legs . | . . . . Wheels 1485 | 33 607 394 451 Hover . | . . . . Flight . | . . . . Fastest Speed 50 | 50 100 115 115 Average Speed 131 | 78 127 116 159 Slowest Speed 175 | 100 160 160 175 Overloaded Moves . | . . . . Propulsion Burnouts . | . . . . Robots Hopped . | . . . . Potential Cave-ins . | . . . . Cave-ins Triggered . | . . . . Exploration Rate (%) 53 | 3 97 81 32 Regions Visited 3 Branch Regions 2 Pre-discovered Areas 4 | . 2 . 2 Known Exits Taken 2 | . 1 1 . Unknown Exits Taken 1 | 1 . . . Scrap Searched 4 | . . 1 3 Spaces Dug 1 | . 1 . . Terrain Destroyed 1 | . 1 . . Melee . | . . . . Projectile 1 | . 1 . . AOE . | . . . . Terrain Rammed . | . . . . Walls Destroyed . | . . . . Machines Disabled . | . . . . Actions | -11 -10 -10 -10 --------- Run | Yrd Mat Min Sub Total 2085 | 75 1011 456 543 Wait 191 | . 113 45 33 Move 1717 | 57 803 406 451 Hop . | . . . . Pick Up 44 | 10 20 1 13 Fast Attach 5 | 3 2 . . Attach 6 | 4 1 . 1 Detach 1 | . 1 . . Swap 39 | . 21 3 15 Drop 16 | . 12 1 3 Fire 61 | 1 33 . 27 Melee . | . . . . Ram 1 | . 1 . . Kick . | . . . . Crush 4 | . 4 . . Escape Stasis . | . . . . Rewire . | . . . . Trap . | . . . . Miscellaneous . | . . . . Route ------- -11/Scrapyard -10/Materials (discovered 5 exits: *Mat x3 / *Min / Sub) -10/Mines (discovered 3 exits: *Mat x2 / *Sub) -10/Subcaves (discovered 2 exits: *Mat / Rec) History --------- Turn | Location | Event 9 | -11/Scrapyard | Discovered new exit (range 15) 67 | -11/Scrapyard | Entered Materials 79 | -10/Materials | Discovered new exit (range 15) 305 | -10/Materials | Build established: Mutant 357 | -10/Materials | Discovered new exit (range 8) 821 | -10/Materials | Discovered new exit (range 5) 1022 | -10/Materials | Repaired Lgt. Treads 1026 | -10/Materials | Learned 2 Storage zone layouts 1049 | -10/Materials | Repaired Lgt. Treads 1066 | -10/Materials | Identified exit to Materials 1066 | -10/Materials | Identified exit to Mines 1096 | -10/Materials | Learned location of 2 exits from Subcaves 1118 | -10/Materials | Learned Storage emergency access door positions 1130 | -10/Materials | Learned location of 2 exits from Mines 1133 | -10/Materials | Learned Storage interactive machine intel 1134 | -10/Materials | Identified exit to Subcaves 1366 | -10/Materials | Entered Mines 1370 | -10/Mines | Assisted by bots powering up and referring to "LRC-V3" 1581 | -10/Mines | Learned 2 Materials zone layouts 1655 | -10/Mines | Received a Rocket Launcher from a helpful Derelict 1880 | -10/Mines | Discovered exit to Subcaves (range 6) 1890 | -10/Mines | Entered Subcaves 1890 | -10/Subcaves | Accompanied by 3 allies 1891 | -10/Subcaves | Approached by a straggling Scientist 1891 | -10/Subcaves | Identified exit to Recycling 1891 | -10/Subcaves | Identified exit to Materials 1963 | -10/Subcaves | Learned location of Zion (-7) 1993 | -10/Subcaves | Met a Zionite searching for "candidates" 2132 | -10/Subcaves | Shifting Twisted Machinery released Barrage Gun 2132 | -10/Subcaves | Shifting Twisted Machinery released Mak. Light Armor Plating 2733 | -10/Subcaves | Core integrity fell below 50% 2749 | -10/Subcaves | Core integrity fell below 20% 2758 | -10/Subcaves | Destroyed by Z2-6EW(R) with Subdweller Machine Gun Last Messages --------------- 02375_ Found Battle Cannon. 02375_ Found 64 Matter. 02382_ Searching scrap... 02382_ Found Mak. Light Armor Plating. 02382_ Found Battle Rifle. 02382_ Found 41 Matter. 02386_ Dropped Lgt. Armor Plating. 02386_ Acquired Mak. Light Armor Plating. 30-T52(c): "I think it's somewhere south of here" 02430_ 30-T52(c) destroyed. 02437_ L0-WT6(R) destroyed. 02440_ Acquired 38 matter. 02445_ Dropped Wheel. 02445_ Acquired Machine Analyzer. 02448_ Acquired 2 matter. 02734_ Lgt. Treads destroyed. 02740_ Ion Engine destroyed. 02750_ Imp. Assault Rifle destroyed. 02750_ 8M-LHK(R) destroyed. Map ----- +----------------------------------------------------+ | ?????????????????????????????????????????????????? | | ?????????????????????????????????????????????????? | | ?????????????????????????????????????????????????? | | ?????????????????????????????????????????????????? | | ?????????????????????????????????????????????????? | | ?????????????????????????????????????????????????? | | ?????????????????????????????????????????????????? | | ?????????????????????????????????????????????????? | | ?????????????????????????????????????????????????? | | ?????????????????????????????????????????????????? | | ????????????????????????????????????????????????? | | ???????????????????????????????????????????????? # | | ??????????????????????????????????????????????"" " | | ????????????????????????####??????????????##### "" | | ????????????????????????# #????????###???#" " | | ???????????????????????? ?????#### ##### "" " | | ???????????????????????## ???### ## #?""" | | ??????????????#????###?? ##??# #???"" | | ??????????????# ### #?# ##?## ###?## | | ??????????? ## ## #??# ###### ### | | ?????????? #?## #####????#"" | | ?????????? ### #????????#" | | ?????????????????# *! ## #???????## | | ?????????????????### ###%R ##??????# # | | ???????????????????????#;=! ##?????## # | | ???????????????????????#;@ #??????## ## | | ???????????????????????# #??????## #? | | ???????????????????????# #???????####? | | ???????????????????????## ##???????????? | | ????????????????????????### ####????????????? | | ??????????????????????????#### ##???????????????? | | ?????????????????????????????####????????????????? | | ?????????????????????????????????????????????????? | | ?????????????????????????????????????????????????? | | ?????????????????????????????????????????????????? | | ?????????????????????????????????????????????????? | | ?????????????????????????????????????????????????? | | ?????????????????????????????????????????????????? | | ?????????????????????????????????????????????????? | | ?????????????????????????????????????????????????? | | ?????????????????????????????????????????????????? | | ?????????????????????????????????????????????????? | | ?????????????????????????????????????????????????? | | ?????????????????????????????????????????????????? | | ?????????????????????????????????????????????????? | | ?????????????????????????????????????????????????? | | | | | | | | | +----------------------------------------------------+ Best States ------------- Heat Dissipation 47 Energy Generation 10 Energy Capacity 250 Matter Stores 300 Matter Capacity 300 Sight Range 16 Terrain Scan Density 10 Armor Coverage 150 Evasion (%) 50 Recoil Reduction 2 Item Schematics ----------------- Hcp. Storage Unit | -10/Materials | Hacked Robot Schematics ------------------ None Fabricated ------------ Nothing Repaired ---------- Lgt. Treads | 60% | -10/Materials Lgt. Treads | 73% | -10/Materials Studied --------- None Alien Tech Used ----------------- None Achievements -------------- None Challenges ------------ None Game ------ Seed RecoilPartitionMembrane Manual? 0 Play Time 00:19:12 Cumulative 327.9 hours Start 2026.02.10 @ 03:18:50 End 2026.02.12 @ 20:18:48 Sessions 6 Manual Loads 0 Difficulty Rogue Special Mode None Game No. 184 Rogue 180 Adventurer 4 Explorer 0 Win Type - Total 11 Types 9/0/2/0/0/0/0/0/0/0 Lore% 88 Gallery% 74 Achievement% 58 Wizard Run 0 Options --------- Layout 1 ASCII 0 Keyboard 1 Movement Numpad Keybinds 1 Fullscreen 1 Font 24/Smallcaps Map View 50x35 Zoom Use 0% Tactical HUD 1 Map Filters NONE Filters NONE Steam 1 RUN: 992fc066-4f77-47b1-8e35-518419016aad